fUSD/lending_fUSD_20240625
["ID","MTS","AMOUNT","RATE_DAILY","PERIOD"]
[330405749,1719351040018,-500.0,0.00019178,2]
[330405751,1719351040027,-17425.80178179,0.00019178,2]
[330405798,1719351040596,-559.75762178,0.00019178,2]
[330405800,1719351040609,-2053.71059643,0.00019178,2]
[330405802,1719351040619,-667.01,0.00019178,2]
[330405804,1719351040630,-500.0,0.00019178,2]
[330405806,1719351040640,-383.90854072,0.00019178,2]
[330405808,1719351040650,-500.0,0.00019178,2]
[330405810,1719351040660,-627.85,0.00019178,2]
[330405812,1719351040669,-500.0,0.00019178,2]
[330405813,1719351040679,-500.0,0.00019178,2]
[330405815,1719351040688,-500.0,0.00019178,2]
[330405817,1719351040698,-772.65,0.00019178,2]
[330405819,1719351040707,-3795.34,0.00019178,2]
[330405821,1719351040716,-500.0,0.00019178,2]
[330405823,1719351040726,-792.86,0.00019178,2]
[330405825,1719351040736,-500.0,0.00019178,2]
[330405827,1719351040746,-1432.62,0.00019178,2]
[330405829,1719351040755,-500.0,0.00019178,2]
[330405831,1719351040765,-500.0,0.00019178,2]
[330405833,1719351040775,-500.0,0.00019178,2]
[330405835,1719351040784,-680.68,0.00019178,2]
[330405837,1719351040794,-1805.14,0.00019178,2]
[330405839,1719351040803,-998.51,0.00019178,2]
[330405841,1719351040813,-7451.8,0.00019178,2]
[330405843,1719351040822,-571.78,0.00019178,2]
[330405845,1719351040832,-1510.13,0.00019178,2]
[330405847,1719351040844,-2010.52,0.00019178,2]
[330405849,1719351040853,-500.0,0.00019178,2]
[330405851,1719351040863,-1109.66,0.00019178,2]
[330405853,1719351040873,-643.27,0.00019178,2]
[330405855,1719351040883,-801.67,0.00019178,2]
[330405857,1719351040893,-717.15,0.00019178,2]
[330405859,1719351040903,-500.0,0.00019178,2]
[330405860,1719351040912,-864.87,0.00019178,2]
[330405862,1719351040922,-3945.64,0.00019178,2]
[330405864,1719351040931,-500.0,0.00019178,2]
[330405866,1719351040942,-500.0,0.00019178,2]
[330405868,1719351040951,-891.26,0.00019178,2]
[330405870,1719351040960,-500.0,0.00019178,2]
[330405872,1719351040970,-500.0,0.00019178,2]
[330405874,1719351040979,-3762.66,0.00019178,2]
[330405876,1719351040989,-500.0,0.00019178,2]
[330405887,1719351041086,-2648.23,0.00019178,2]
[330405889,1719351041096,-2060.73,0.00019178,2]
[330405891,1719351041106,-500.0,0.00019178,2]
[330405893,1719351041115,-906.52,0.00019178,2]
[330405895,1719351041125,-500.0,0.00019178,2]
[330405897,1719351041134,-2447.58,0.00019178,2]
[330405899,1719351041143,-2618.6,0.00019178,2]
[330405901,1719351041154,-768.9,0.00019178,2]
[330405903,1719351041163,-1306.73,0.00019178,2]
[330405905,1719351041173,-1275.55,0.00019178,2]
[330405906,1719351041183,-1006.62,0.00019178,2]
[330405908,1719351041192,-3786.54,0.00019178,2]
[330405910,1719351041201,-3786.76,0.00019178,2]
[330405912,1719351041211,-1480.28,0.00019178,2]
[330405914,1719351041220,-500.0,0.00019178,2]
[330405916,1719351041230,-692.88,0.00019178,2]
[330405918,1719351041241,-1020.73,0.00019178,2]
[330405920,1719351041251,-500.0,0.00019178,2]
[330405922,1719351041260,-500.0,0.00019178,2]
[330405924,1719351041269,-605.09,0.00019178,2]
[330405926,1719351041278,-3816.84655027,0.00019178,2]
[330405929,1719351041290,-733.24344973,0.00019178,2]
[330405931,1719351041300,-1256.61,0.00019178,2]
[330405933,1719351041309,-250.0,0.00019178,2]
[330405935,1719351041318,-357.84095027,0.00019339,2]
[330405937,1719351041328,-286.18192272,0.00019339,2]
[330405938,1719351041340,-1617.61111582,0.00019339,2]
[330405939,1719351041351,-10770.33601119,0.00019339,2]
[330405940,1719351041360,-9999.99,0.00019339,2]
[330405941,1719351041370,-6110.94,0.00019339,2]
[330405942,1719351041380,-169.84796896,0.00019352,2]
[330405943,1719351041389,-2432.19103072,0.00019352,2]
[330405944,1719351041399,-172.26505131,0.00019352,2]
[330405945,1719351041408,-414.22141879,0.00019394,2]
[330405946,1719351041417,-1866.73645063,0.00019394,2]
[330405947,1719351041426,-165.9158672,0.00019441,2]
[330405948,1719351041439,-531.32,0.00019451,2]
[330405949,1719351041448,-631.43,0.00019451,2]
[330405950,1719351041457,-500.0,0.00019451,2]
[330405951,1719351041466,-1722.91,0.00019451,2]
[330405952,1719351041476,-2257.2,0.00019451,2]
[330405953,1719351041485,-1319.7,0.00019451,2]
[330405954,1719351041494,-547.63144606,0.00019451,2]
[330405955,1719351041506,-351.54855394,0.00019451,2]
[330405956,1719351041516,-383.98044606,0.00019452,2]
[330406046,1719351042592,-473.3383626,0.00019078,2]
[330406049,1719351042614,-553.9092374,0.00019078,2]
[330406051,1719351042624,-46.5907626,0.00019169,2]
[330406053,1719351042636,-261.38901049,0.00019169,2]
[330406055,1719351042646,-500.0,0.00019178,2]
[330406056,1719351042655,-702.8,0.00019178,2]
[330406058,1719351042666,-182.01955394,0.00019452,2]
[330406060,1719351042675,-500.0,0.00019452,2]
[330406062,1719351042684,-2528.65,0.00019452,2]
[330406064,1719351042694,-500.0,0.00019452,2]
[330406066,1719351042703,-500.0,0.00019452,2]
[330406067,1719351042712,-500.0,0.00019452,2]
[330406069,1719351042721,-500.0,0.00019452,2]
[330406071,1719351042730,-500.0,0.00019452,2]
[330406073,1719351042739,-670.94,0.00019452,2]
[330406075,1719351042748,-500.0,0.00019452,2]
[330406076,1719351042757,-500.0,0.00019452,2]
[330406078,1719351042768,-161.15404116,0.00019452,2]
[330406080,1719351042777,-500.0,0.00019452,2]
[330406082,1719351042786,-500.0,0.00019452,2]
[330406084,1719351042795,-500.0,0.00019452,2]
[330406086,1719351042805,-500.0,0.00019452,2]
[330406088,1719351042815,-500.0,0.00019452,2]
[330406089,1719351042824,-500.0,0.00019452,2]
[330406091,1719351042833,-521.68,0.00019452,2]
[330406093,1719351042842,-500.0,0.00019452,2]
[330406095,1719351042851,-200.44307442,0.00019452,2]
[330406097,1719351042869,-299.55692558,0.00019452,2]
[330406099,1719351042878,-500.0,0.00019452,2]
[330406101,1719351042888,-500.0,0.00019452,2]
[330406103,1719351042898,-500.0,0.00019452,2]
[330406105,1719351042907,-500.0,0.00019452,2]
[330406106,1719351042916,-266.6427308,0.00019452,2]
[330406109,1719351042931,-233.3572692,0.00019452,2]
[330406111,1719351042941,-500.0,0.00019452,2]
[330406112,1719351042949,-608.32,0.00019452,2]
[330406114,1719351042958,-372.34803974,0.00019452,2]
[330406116,1719351042972,-127.65196026,0.00019452,2]
[330406118,1719351042981,-500.0,0.00019452,2]
[330406120,1719351042990,-500.0,0.00019452,2]
[330406122,1719351042999,-500.0,0.00019452,2]
[330406124,1719351043008,-500.0,0.00019452,2]
[330406126,1719351043017,-500.0,0.00019452,2]
[330406128,1719351043026,-500.0,0.00019452,2]
[330406130,1719351043035,-529.9,0.00019452,2]
[330406132,1719351043044,-239.52009354,0.00019452,2]
[330406134,1719351043053,-681.27,0.00019452,2]
[330406135,1719351043062,-500.0,0.00019452,2]
[330406136,1719351043071,-500.0,0.00019452,2]
[330406137,1719351043080,-500.0,0.00019452,2]
[330406138,1719351043089,-500.0,0.00019452,2]
[330406139,1719351043098,-2294.94,0.00019452,2]
[330406140,1719351043106,-500.0,0.00019452,2]
[330406141,1719351043115,-500.0,0.00019452,2]
[330406142,1719351043125,-197.10376441,0.00019452,2]
[330406143,1719351043142,-302.89623559,0.00019452,2]
[330406145,1719351043152,-70.05288118,0.00019452,2]
[330406147,1719351043172,-429.94711882,0.00019452,2]
[330406149,1719351043181,-500.0,0.00019452,2]
[330406151,1719351043190,-500.0,0.00019452,2]
[330406153,1719351043199,-546.21,0.00019452,2]
[330406155,1719351043207,-9.49222271,0.00019452,2]
[330406209,1719351043559,-500.0,0.00019178,2]
[330406211,1719351043568,-490.50777729,0.00019452,2]
[330406213,1719351043578,-500.0,0.00019452,2]
[330406215,1719351043587,-500.0,0.00019452,2]
[330406216,1719351043596,-500.0,0.00019452,2]
[330406218,1719351043605,-500.0,0.00019452,2]
[330406221,1719351043615,-500.0,0.00019452,2]
[330406223,1719351043624,-500.0,0.00019452,2]
[330406225,1719351043633,-501.04,0.00019452,2]
[330406227,1719351043643,-500.0,0.00019452,2]
[330406229,1719351043653,-500.0,0.00019452,2]
[330406230,1719351043662,-500.0,0.00019452,2]
[330406232,1719351043671,-500.0,0.00019452,2]
[330406235,1719351043680,-500.0,0.00019452,2]
[330406237,1719351043691,-500.0,0.00019452,2]
[330406239,1719351043700,-500.0,0.00019452,2]
[330406241,1719351043709,-527.66404227,0.00019452,2]
[330406243,1719351043718,-500.0,0.00019452,2]
[330406245,1719351043727,-500.0,0.00019452,2]
[330406247,1719351043737,-500.0,0.00019452,2]
[330406249,1719351043747,-271.81924135,0.00019452,2]
[330406251,1719351043756,-500.0,0.00019452,2]
[330406253,1719351043765,-500.0,0.00019452,2]
[330406255,1719351043774,-500.0,0.00019452,2]
[330406257,1719351043783,-538.43,0.00019452,2]
[330406258,1719351043792,-199.83081942,0.00019452,2]
[330406261,1719351043805,-300.16918058,0.00019452,2]
[330406263,1719351043815,-206.99601939,0.00019452,2]
[330406269,1719351043865,-470.84882949,0.00019452,2]
[330406272,1719351043877,-121.50515112,0.00019452,2]
[330406274,1719351043887,-500.0,0.00019452,2]
[330406276,1719351043897,-632.54398814,0.00019452,2]
[330406278,1719351043907,-414.6464657,0.00019452,2]
[330406280,1719351043917,-465.77624547,0.00019452,2]
[330406282,1719351043926,-272.93814956,0.00019452,2]
[330406284,1719351043938,-254.52185044,0.00019452,2]
[330406286,1719351043948,-500.0,0.00019452,2]
[330406288,1719351043958,-500.0,0.00019452,2]
[330406290,1719351043967,-500.0,0.00019452,2]
[330406292,1719351043977,-500.0,0.00019452,2]
[330406294,1719351043987,-500.0,0.00019452,2]
[330406296,1719351043997,-245.23602965,0.00019452,2]
[330406299,1719351044007,-500.0,0.00019452,2]
[330406301,1719351044016,-627.03,0.00019452,2]
[330406303,1719351044026,-500.0,0.00019452,2]
[330406305,1719351044036,-500.0,0.00019452,2]
[330406308,1719351044046,-500.0,0.00019452,2]
[330406311,1719351044057,-500.0,0.00019452,2]
[330406313,1719351044067,-500.0,0.00019452,2]
[330406315,1719351044078,-536.54,0.00019452,2]
[330406317,1719351044088,-500.0,0.00019452,2]
[330406319,1719351044098,-500.0,0.00019452,2]
[330406321,1719351044108,-542.12,0.00019452,2]
[330406324,1719351044118,-500.0,0.00019452,2]
[330406325,1719351044128,-597.19,0.00019452,2]
[330406328,1719351044138,-1722.79,0.00019452,2]
[330406330,1719351044148,-505.11,0.00019452,2]
[330406332,1719351044158,-500.0,0.00019452,2]
[330406334,1719351044168,-677.14,0.00019452,2]
[330406336,1719351044178,-500.0,0.00019452,2]
[330406338,1719351044188,-1756.22,0.00019452,2]
[330406340,1719351044199,-500.0,0.00019452,2]
[330406342,1719351044208,-641.62,0.00019452,2]
[330406344,1719351044219,-500.0,0.00019452,2]
[330406346,1719351044230,-500.0,0.00019452,2]
[330406348,1719351044242,-500.0,0.00019452,2]
[330406351,1719351044253,-225.83491468,0.00019452,2]
[330406353,1719351044263,-830.53,0.00019452,2]
[330406355,1719351044273,-500.0,0.00019452,2]
[330406357,1719351044283,-500.0,0.00019452,2]
[330406359,1719351044294,-1065.38,0.00019452,2]
[330406361,1719351044304,-532.16,0.00019452,2]
[330406363,1719351044314,-500.0,0.00019452,2]
[330406365,1719351044324,-579.94,0.00019452,2]
[330406367,1719351044334,-500.0,0.00019452,2]
[330406369,1719351044344,-500.0,0.00019452,2]
[330406371,1719351044355,-500.0,0.00019452,2]
[330406373,1719351044365,-1101.81,0.00019452,2]
[330406375,1719351044375,-1286.99,0.00019452,2]
[330406378,1719351044385,-500.0,0.00019452,2]
[330406380,1719351044396,-500.0,0.00019452,2]
[330406382,1719351044406,-500.0,0.00019452,2]
[330406384,1719351044416,-500.0,0.00019452,2]
[330406386,1719351044427,-500.0,0.00019452,2]
[330406388,1719351044442,-500.0,0.00019452,2]
[330406390,1719351044453,-500.0,0.00019452,2]
[330406392,1719351044464,-500.0,0.00019452,2]
[330406394,1719351044474,-500.0,0.00019452,2]
[330406396,1719351044487,-1072.81,0.00019452,2]
[330406398,1719351044498,-568.3504697,0.00019452,2]
[330406400,1719351044508,-500.0,0.00019452,2]
[330406402,1719351044521,-500.0,0.00019452,2]
[330406404,1719351044531,-588.45,0.00019452,2]
[330406406,1719351044542,-500.0,0.00019452,2]
[330406408,1719351044552,-500.0,0.00019452,2]
[330406410,1719351044563,-1073.39,0.00019452,2]
[330406413,1719351044573,-2715.38,0.00019452,2]
[330406415,1719351044584,-500.0,0.00019452,2]
[330406417,1719351044594,-500.0,0.00019452,2]
[330406419,1719351044604,-500.0,0.00019452,2]
[330406421,1719351044616,-500.0,0.00019452,2]
[330406423,1719351044626,-500.0,0.00019452,2]
[330406425,1719351044636,-500.0,0.00019452,2]
[330406428,1719351044647,-500.0,0.00019452,2]
[330406430,1719351044657,-500.0,0.00019452,2]
[330406432,1719351044667,-500.0,0.00019452,2]
[330406434,1719351044677,-666.29,0.00019452,2]
[330406436,1719351044687,-500.0,0.00019452,2]
[330406438,1719351044697,-500.0,0.00019452,2]
[330406440,1719351044708,-500.0,0.00019452,2]
[330406442,1719351044717,-1279.28,0.00019452,2]
[330406444,1719351044728,-871.74,0.00019452,2]
[330406446,1719351044739,-717.81,0.00019452,2]
[330406448,1719351044749,-500.0,0.00019452,2]
[330406450,1719351044759,-500.0,0.00019452,2]
[330406452,1719351044770,-893.51,0.00019452,2]
[330406455,1719351044780,-642.97,0.00019452,2]
[330406457,1719351044790,-500.0,0.00019452,2]
[330406459,1719351044800,-500.0,0.00019452,2]
[330406461,1719351044810,-500.0,0.00019452,2]
[330406463,1719351044820,-586.86166746,0.00019452,2]
[330406465,1719351044830,-500.0,0.00019452,2]
[330406467,1719351044841,-151.0,0.00019452,2]
[330406469,1719351044851,-1021.58,0.00019452,2]
[330406471,1719351044862,-500.0,0.00019452,2]
[330406474,1719351044872,-500.0,0.00019452,2]
[330406476,1719351044882,-2414.87,0.00019452,2]
[330406478,1719351044892,-500.0,0.00019452,2]
[330406480,1719351044902,-819.72,0.00019452,2]
[330406482,1719351044912,-500.0,0.00019452,2]
[330406484,1719351044922,-500.0,0.00019452,2]
[330406486,1719351044932,-500.0,0.00019452,2]
[330406488,1719351044942,-897.99,0.00019452,2]
[330406490,1719351044953,-500.0,0.00019452,2]
[330406493,1719351044964,-500.0,0.00019452,2]
[330406495,1719351044974,-500.0,0.00019452,2]
[330406497,1719351044984,-658.56,0.00019452,2]
[330406499,1719351044994,-765.02,0.00019452,2]
[330406501,1719351045003,-823.03,0.00019452,2]
[330406503,1719351045014,-500.0,0.00019452,2]
[330406505,1719351045024,-599.61,0.00019452,2]
[330406507,1719351045034,-500.0,0.00019452,2]
[330406509,1719351045043,-500.0,0.00019452,2]
[330406511,1719351045053,-500.0,0.00019452,2]
[330406513,1719351045063,-500.0,0.00019452,2]
[330406516,1719351045074,-785.91,0.00019452,2]
[330406518,1719351045084,-500.0,0.00019452,2]
[330406520,1719351045094,-1547.91,0.00019452,2]
[330406522,1719351045105,-500.0,0.00019452,2]
[330406524,1719351045115,-500.0,0.00019452,2]
[330406526,1719351045126,-500.0,0.00019452,2]
[330406528,1719351045137,-5750.51,0.00019452,2]
[330406530,1719351045147,-500.0,0.00019452,2]
[330406533,1719351045162,-1241.61,0.00019452,2]
[330406535,1719351045172,-761.47,0.00019452,2]
[330406537,1719351045182,-1975.27,0.00019452,2]
[330406539,1719351045194,-500.0,0.00019452,2]
[330406541,1719351045205,-1012.96,0.00019452,2]
[330406543,1719351045215,-500.0,0.00019452,2]
[330406545,1719351045225,-1294.05,0.00019452,2]
[330406547,1719351045237,-834.51,0.00019452,2]
[330406550,1719351045252,-500.0,0.00019452,2]
[330406552,1719351045264,-500.0,0.00019452,2]
[330406554,1719351045277,-500.0,0.00019452,2]
[330406557,1719351045289,-548.6,0.00019452,2]
[330406559,1719351045302,-569.68,0.00019452,2]
[330406561,1719351045314,-500.0,0.00019452,2]
[330406564,1719351045324,-1286.22,0.00019452,2]
[330406566,1719351045334,-731.2,0.00019452,2]
[330406568,1719351045345,-500.0,0.00019452,2]
[330406570,1719351045357,-500.0,0.00019452,2]
[330406572,1719351045369,-1430.57,0.00019452,2]
[330406574,1719351045380,-921.15,0.00019452,2]
[330406577,1719351045393,-78.34853827,0.00019452,2]
[330406580,1719351045417,-421.65146173,0.00019452,2]
[330406582,1719351045429,-366.14478451,0.00019452,2]
[330406585,1719351045450,-133.85521549,0.00019452,2]
[330406587,1719351045461,-500.0,0.00019452,2]
[330406590,1719351045476,-424.52767704,0.00019452,2]
[330406594,1719351045509,-75.47232296,0.00019452,2]
[330406596,1719351045520,-500.0,0.00019452,2]
[330406599,1719351045532,-500.0,0.00019452,2]
[330406601,1719351045543,-530.52767704,0.00019452,2]
[330406675,1719351046397,-500.0,0.00019178,2]
[330406677,1719351046409,-216.05863016,0.00019178,2]
[330406722,1719351047672,-283.94136984,0.00019178,2]
[330406723,1719351047683,-816.38232296,0.00019452,2]
[330406724,1719351047692,-500.0,0.00019452,2]
[330406725,1719351047703,-500.0,0.00019452,2]
[330406726,1719351047712,-1577.47,0.00019452,2]
[330406727,1719351047722,-1370.78,0.00019452,2]
[330406728,1719351047732,-500.0,0.00019452,2]
[330406729,1719351047742,-500.0,0.00019452,2]
[330406730,1719351047753,-11984.64,0.00019452,2]
[330406731,1719351047762,-500.0,0.00019452,2]
[330406732,1719351047772,-1285.96,0.00019452,2]
[330406733,1719351048529,-500.0,0.00019452,2]
[330406734,1719351048549,-1242.58,0.00019452,2]
[330406735,1719351048571,-500.0,0.00019452,2]
[330406736,1719351048593,-500.0,0.00019452,2]
[330406737,1719351048610,-1310.78,0.00019452,2]
[330406738,1719351048631,-629.9,0.00019452,2]
[330406739,1719351048640,-500.0,0.00019452,2]
[330406740,1719351048650,-500.0,0.00019452,2]
[330406741,1719351048660,-664.02,0.00019452,2]
[330406742,1719351048670,-500.0,0.00019452,2]
[330406743,1719351048681,-500.0,0.00019452,2]
[330406744,1719351048690,-500.0,0.00019452,2]
[330406745,1719351048700,-500.0,0.00019452,2]
[330406746,1719351048710,-976.05,0.00019452,2]
[330406747,1719351048719,-500.0,0.00019452,2]
[330406748,1719351048729,-666.22,0.00019452,2]
[330406749,1719351048738,-5596.92,0.00019452,2]
[330406750,1719351048747,-500.0,0.00019452,2]
[330406751,1719351048756,-560.32,0.00019452,2]
[330406752,1719351048766,-589.25,0.00019452,2]
[330406753,1719351048775,-587.03,0.00019452,2]
[330406754,1719351048784,-744.37,0.00019452,2]
[330406755,1719351048794,-500.0,0.00019452,2]
[330406756,1719351048803,-500.0,0.00019452,2]
[330406757,1719351048812,-1027.22,0.00019452,2]
[330406758,1719351048822,-621.92,0.00019452,2]
[330406759,1719351048831,-509.62,0.00019452,2]
[330406760,1719351048840,-929.68572535,0.00019452,2]
[330406761,1719351090605,581.19,0.0001688,2]
[330406762,1719351151846,150.5,0.0001999,30]
[330406763,1719351152266,150.5,0.0001998,30]
[330406764,1719351152833,150.5,0.0001997,30]
[330406767,1719351344021,-235.529,0.00018172,2]
[330406768,1719351344046,-250.0,0.00018506,2]
[330406769,1719351344072,-902.1526989,0.00018978,2]
[330406771,1719351355392,172.81449373,0.00018978,2]
[330406772,1719351362255,300.0,0.00018977,2]
[330406774,1719351400465,11251.2759,0.00015,2]
[330406775,1719351400490,1377.39,0.00015,2]
[330406776,1719351400515,1377.39,0.00015,2]
[330406777,1719351400543,1377.39,0.00015,2]
[330406778,1719351400568,1377.39,0.00015,2]
[330406779,1719351400658,1377.39,0.00015,2]
[330406780,1719351400683,1377.39,0.00015,2]
[330406781,1719351400708,1377.39,0.00015,2]
[330406782,1719351400732,1347.2248702,0.00015,2]
[330406799,1719351741407,30.1651298,0.00016275,2]
[330406800,1719351741431,552.3648702,0.00016275,2]
[330406802,1719351863675,393.32893008,0.00017533,2]
[330406810,1719352159861,431.69619972,0.000174,5]
[330406811,1719352159888,1377.39,0.000174,5]
[330406812,1719352159913,1377.39,0.000174,5]
[330406813,1719352159940,1377.39,0.000174,5]
[330406814,1719352159964,1377.39,0.000174,5]
[330406832,1719352231638,-1046.0,0.000173,5]
[330406833,1719352231648,-250.0,0.00018109,2]
[330406834,1719352231659,-1000.0,0.00018109,2]
[330406835,1719352231669,-250.0,0.00018174,2]
[330406836,1719352231678,-162.08,0.0001836,2]
[330406838,1719352231686,-155.0,0.00018538,2]
[330406840,1719352231695,-155.0,0.00018538,2]
[330406842,1719352231704,-300.0,0.00018538,2]
[330406843,1719352231713,-582.53,0.00018539,2]
[330406844,1719352231722,-364.844001,0.00018614,2]
[330406845,1719352231731,-155.0,0.00018614,2]
[330406846,1719352231740,-720.52768086,0.00018695,2]
[330406847,1719352231749,-155.0,0.00018759,2]
[330406848,1719352231758,-304.87399131,0.00018759,2]
[330406849,1719352231768,-155.0,0.00018759,2]
[330406850,1719352231778,-264.3264858,0.00018859,2]
[330406851,1719352231789,-482.87871356,0.00018859,2]
[330406852,1719352231799,-2068.09148672,0.00018968,2]
[330406853,1719352231808,-2169.17449152,0.00018978,2]
[330406854,1719352231823,-811.93742901,0.00018978,2]
[330406855,1719352231832,-172.81449373,0.00018978,2]
[330406856,1719352231841,-4086.17768749,0.00018978,2]
[330406858,1719352231854,-805.54981251,0.00018978,2]
[330406860,1719352231864,-804.2661,0.00018978,2]
[330406862,1719352231873,-330.9619,0.00018978,2]
[330406864,1719352231882,-1000.0,0.00018978,2]
[330406866,1719352231893,-1416.216,0.00018978,2]
[330406868,1719352231902,-4166.7241,0.00018978,2]
[330406870,1719352231911,-13092.82971697,0.00018978,2]
[330406871,1719352231923,-620.99,0.00018978,2]
[330406874,1719352231934,-394.95499992,0.00018978,2]
[330406876,1719352231966,-10795.61311371,0.00018978,2]
[330406881,1719352238361,-679.88073173,0.00018614,2]
[330406886,1719352238623,-583.2001489,0.00018614,2]
[330406887,1719352238633,-536.75970868,0.00018978,2]
[330406888,1719352238645,-11362.50358504,0.00018978,2]
[330406889,1719352238879,-7321.52880583,0.00018978,2]
[330406955,1719352239633,-2120.90596985,0.00018978,2]
[330406957,1719352239644,-196.25629997,0.00018978,2]
[330406959,1719352239657,-340.78144659,0.00018978,2]
[330406961,1719352239670,-629.96234234,0.00018978,2]
[330406963,1719352239685,-1596.88006637,0.00018978,2]
[330406965,1719352239698,-500.0,0.00018978,2]
[330406966,1719352239836,-1565.95534473,0.00018978,2]
[330406967,1719352239853,-2508.7196,0.00018978,2]
[330406968,1719352239866,-37036.9169,0.00018978,2]
[330406969,1719352239878,-1000.0,0.00018978,2]
[330406971,1719352239888,-655.0,0.00019,2]
[330406972,1719352239899,-2379.0,0.00019,2]
[330406974,1719352239912,-195.46100003,0.00019078,2]
[330406976,1719352239923,-4153.59058671,0.00019078,2]
[330406978,1719352239936,-172.26505131,0.00019078,2]
[330406981,1719352239947,-2082.18081709,0.00019078,2]
[330406983,1719352239958,-33620.9001,0.00019078,2]
[330406985,1719352239969,-245000.0,0.00019078,2]
[330406987,1719352239980,-3166.2426,0.00019078,2]
[330406989,1719352239990,-100000.0,0.00019078,2]
[330406991,1719352240000,-500.0,0.00019078,2]
[330406993,1719352240010,-1000.0,0.00019078,2]
[330406995,1719352240021,-10000.0,0.00019078,2]
[330406998,1719352240032,-161.3773855,0.00019168,2]
[330407000,1719352240042,-155.0,0.00019177,2]
[330407002,1719352240053,-163.61123882,0.00019177,2]
[330407004,1719352240063,-366.11090361,0.00019177,2]
[330407006,1719352240073,-158.25040673,0.00019177,2]
[330407008,1719352240084,-202.01806079,0.00019177,2]
[330407010,1719352240095,-526.547858,0.00019177,2]
[330407012,1719352240105,-2876.46,0.00019178,2]
[330407014,1719352240116,-2876.46,0.00019178,2]
[330407016,1719352240127,-759.83,0.00019178,2]
[330407018,1719352240138,-2537.89,0.00019178,2]
[330407021,1719352240148,-500.0,0.00019178,2]
[330407023,1719352240158,-3637.2,0.00019178,2]
[330407025,1719352240169,-500.0,0.00019178,2]
[330407027,1719352240180,-500.0,0.00019178,2]
[330407029,1719352240191,-500.0,0.00019178,2]
[330407031,1719352240201,-500.0,0.00019178,2]
[330407033,1719352240211,-500.0,0.00019178,2]
[330407035,1719352240221,-500.0,0.00019178,2]
[330407037,1719352240231,-500.0,0.00019178,2]
[330407039,1719352240242,-500.0,0.00019178,2]
[330407041,1719352240253,-549.65,0.00019178,2]
[330407043,1719352240263,-500.0,0.00019178,2]
[330407046,1719352240275,-500.0,0.00019178,2]
[330407048,1719352240286,-500.0,0.00019178,2]
[330407050,1719352240296,-500.0,0.00019178,2]
[330407052,1719352240306,-500.0,0.00019178,2]
[330407054,1719352240316,-527.02400362,0.00019178,2]
[330407056,1719352240327,-500.0,0.00019178,2]
[330407058,1719352240337,-500.0,0.00019178,2]
[330407060,1719352240347,-500.0,0.00019178,2]
[330407063,1719352240358,-500.0,0.00019178,2]
[330407065,1719352240368,-509.18,0.00019178,2]
[330407068,1719352240379,-509.18,0.00019178,2]
[330407070,1719352240389,-500.0,0.00019178,2]
[330407072,1719352240398,-500.0,0.00019178,2]
[330407074,1719352240409,-605.12,0.00019178,2]
[330407076,1719352240419,-500.0,0.00019178,2]
[330407078,1719352240430,-554.69,0.00019178,2]
[330407080,1719352240440,-500.0,0.00019178,2]